fUSD/lending_fUSD_20251201
["ID","MTS","AMOUNT","RATE_DAILY","PERIOD"]
[395230025,1764556247771,-250.0,0.00016146,2]
[395230026,1764556247781,-1000.0,0.00016146,2]
[395230027,1764556247790,-1000.0,0.00016146,2]
[395230028,1764556247800,-250.0,0.00016146,2]
[395230029,1764556247810,-1000.0,0.00016146,2]
[395230030,1764556247819,-1000.0,0.00016146,2]
[395230031,1764556247829,-151.0,0.00016146,2]
[395230032,1764556247839,-250.0,0.00016146,2]
[395230033,1764556247849,-1000.0,0.00016146,2]
[395230034,1764556247859,-1000.0,0.00016146,2]
[395230035,1764556247870,-250.0,0.00016146,2]
[395230036,1764556247880,-1000.0,0.00016146,2]
[395230037,1764556247890,-1000.0,0.00016146,2]
[395230038,1764556247900,-1000.0,0.00016146,2]
[395230039,1764556247910,-160.0,0.00016146,2]
[395230040,1764556247920,-1000.0,0.00016146,2]
[395230041,1764556247930,-1000.0,0.00016146,2]
[395230042,1764556247940,-1000.0,0.00016146,2]
[395230043,1764556247950,-1000.0,0.00016146,2]
[395230044,1764556247962,-500.0,0.00016146,2]
[395230045,1764556247971,-1000.0,0.00016146,2]
[395230046,1764556247981,-500.0,0.00016146,2]
[395230047,1764556247990,-500.0,0.00016146,2]
[395230048,1764556248000,-500.0,0.00016146,2]
[395230049,1764556248009,-500.0,0.00016146,2]
[395230050,1764556248019,-500.0,0.00016146,2]
[395230051,1764556248028,-500.0,0.00016146,2]
[395230052,1764556248038,-500.0,0.00016146,2]
[395230053,1764556248050,-500.0,0.00016146,2]
[395230054,1764556248061,-620.0,0.00016146,2]
[395230055,1764556248071,-500.0,0.00016146,2]
[395230056,1764556248080,-500.0,0.00016146,2]
[395230057,1764556248089,-500.0,0.00016146,2]
[395230058,1764556248099,-500.0,0.00016146,2]
[395230059,1764556248109,-151.0,0.00016146,2]
[395230060,1764556248121,-2229.05280589,0.00016147,2]
[395230061,1764556248130,-4205.89366882,0.00016147,2]
[395230062,1764556248140,-1227.91652633,0.00016147,2]
[395230063,1764556248149,-150.0,0.00016149,2]
[395230064,1764556248159,-226.43577512,0.0001615,2]
[395230065,1764556248168,-2092.314224,0.0001615,2]
[395230066,1764556248177,-150.0,0.00016152,2]
[395230067,1764556248187,-168.0,0.00016153,2]
[395230068,1764556248198,-152.44390529,0.00016163,2]
[395230069,1764556248211,-214.27357495,0.00016163,2]
[395230070,1764556248222,-150.0,0.00016164,2]
[395230071,1764556248232,-150.0,0.00016164,2]
[395230072,1764556248241,-151.0,0.00016165,2]
[395230073,1764556248251,-150.0,0.0001617,2]
[395230074,1764556248266,-150.0,0.00016173,2]
[395230075,1764556248276,-150.0,0.00016177,2]
[395230076,1764556248285,-1000.0,0.00016178,2]
[395230077,1764556248294,-152.44390529,0.0001618,2]
[395230078,1764556248310,-214.27357495,0.0001618,2]
[395230079,1764556248320,-150.0,0.00016183,2]
[395230080,1764556248330,-1123.58810417,0.00016189,2]
[395230081,1764556248339,-500.0,0.0001619,2]
[395230082,1764556248349,-150.0,0.00016192,2]
[395230083,1764556248359,-150.0,0.00016197,2]
[395230084,1764556248369,-152.44390529,0.00016197,2]
[395230085,1764556248379,-214.27357495,0.00016197,2]
[395230086,1764556248388,-150.0,0.00016198,2]
[395230087,1764556248398,-5000.00545179,0.000162,5]
[395230088,1764556248408,-150.0,0.00016202,2]
[395230089,1764556248417,-152.44390529,0.00016214,2]
[395230090,1764556248427,-214.27357495,0.00016214,2]
[395230091,1764556248437,-150.0,0.00016214,2]
[395230092,1764556248447,-150.0,0.00016219,2]
[395230093,1764556248458,-150.0,0.00016219,2]
[395230094,1764556248468,-150.0,0.00016221,2]
[395230095,1764556248478,-152.44390529,0.00016231,2]
[395230096,1764556248488,-214.27357495,0.00016231,2]
[395230097,1764556248499,-150.0,0.00016231,2]
[395230098,1764556248509,-150.0,0.00016235,2]
[395230099,1764556248520,-566.0,0.0001624,2]
[395230100,1764556248531,-566.0,0.00016243,2]
[395230101,1764556248542,-150.0,0.00016245,2]
[395230102,1764556248552,-150.0,0.00016245,2]
[395230103,1764556248563,-150.0,0.00016247,2]
[395230104,1764556248572,-152.44390529,0.00016249,2]
[395230105,1764556248582,-214.27357495,0.00016249,2]
[395230106,1764556248592,-1301.48,0.0001625,2]
[395230107,1764556248603,-150.0,0.00016258,2]
[395230108,1764556248614,-150.0,0.00016258,2]
[395230109,1764556248623,-150.0,0.00016258,2]
[395230110,1764556248633,-152.44390529,0.00016266,2]
[395230111,1764556248643,-214.27357495,0.00016266,2]
[395230112,1764556248789,-150.0,0.00016268,2]
[395230113,1764556248799,-150.0,0.00016269,2]
[395230114,1764556248810,-150.0,0.00016274,2]
[395230115,1764556248819,-150.0,0.00016274,2]
[395230116,1764556248828,-150.0,0.00016276,2]
[395230117,1764556248837,-152.44390529,0.00016283,2]
[395230118,1764556248847,-214.27357495,0.00016283,2]
[395230119,1764556248856,-150.0,0.00016292,2]
[395230120,1764556248866,-152.44390529,0.000163,2]
[395230121,1764556248877,-214.27357495,0.000163,2]
[395230122,1764556248887,-1577.0,0.000163,2]
[395230123,1764556248897,-150.0,0.000163,2]
[395230124,1764556248907,-150.0,0.00016301,2]
[395230125,1764556248917,-150.0,0.00016307,2]
[395230126,1764556248926,-150.0,0.00016316,2]
[395230127,1764556248935,-152.44390529,0.00016317,2]
[395230128,1764556248945,-214.27357495,0.00016317,2]
[395230129,1764556248954,-150.0,0.00016319,2]
[395230130,1764556248964,-207.4,0.00016328,2]
[395230131,1764556248974,-150.0,0.00016329,2]
[395230132,1764556248984,-150.0,0.00016329,2]
[395230133,1764556248994,-200.0,0.00016329,2]
[395230134,1764556249005,-500.0,0.00016329,2]
[395230135,1764556249014,-200.0,0.00016329,2]
[395230136,1764556249024,-1123.58810417,0.00016331,2]
[395230137,1764556249033,-150.0,0.00016333,2]
[395230138,1764556249042,-152.44390529,0.00016334,2]
[395230139,1764556249052,-214.27357495,0.00016334,2]
[395230140,1764556249062,-150.0,0.00016338,2]
[395230141,1764556249071,-150.0,0.00016339,2]
[395230142,1764556249080,-200.0,0.0001634,2]
[395230143,1764556249089,-150.0,0.0001634,2]
[395230144,1764556249099,-152.44390529,0.00016351,2]
[395230145,1764556249108,-214.27357495,0.00016351,2]
[395230146,1764556249118,-150.0,0.00016356,2]
[395230147,1764556249131,-150.0,0.00016364,2]
[395230148,1764556249140,-150.0,0.00016366,2]
[395230149,1764556249150,-152.44390529,0.00016369,2]
[395230150,1764556249159,-214.27357495,0.00016369,2]
[395230151,1764556249168,-150.0,0.00016369,2]
[395230152,1764556249178,-150.0,0.0001638,2]
[395230153,1764556249187,-150.0,0.0001638,2]
[395230154,1764556249197,-150.0,0.00016384,2]
[395230155,1764556249208,-150.0,0.00016384,2]
[395230156,1764556249220,-152.44390529,0.00016386,2]
[395230157,1764556249229,-214.27357495,0.00016386,2]
[395230158,1764556249238,-150.0,0.00016388,2]
[395230159,1764556249247,-150.0,0.00016398,2]
[395230160,1764556249257,-150.0,0.000164,2]
[395230161,1764556249267,-152.44390529,0.00016403,2]
[395230162,1764556249277,-214.27357495,0.00016403,2]
[395230163,1764556249287,-150.0,0.00016411,2]
[395230164,1764556249296,-150.0,0.00016412,2]
[395230165,1764556249307,-168.0,0.00016417,2]
[395230166,1764556249316,-152.44390529,0.0001642,2]
[395230167,1764556249325,-214.27357495,0.0001642,2]
[395230168,1764556249334,-150.0,0.0001642,2]
[395230169,1764556249343,-150.0,0.0001642,2]
[395230170,1764556249352,-150.0,0.0001642,2]
[395230171,1764556249362,-150.0,0.0001642,2]
[395230172,1764556249371,-150.0,0.0001643,2]
[395230173,1764556249380,-150.0,0.00016431,2]
[395230174,1764556249390,-150.0,0.00016436,2]
[395230175,1764556249399,-152.44390529,0.00016437,2]
[395230176,1764556249409,-214.27357495,0.00016437,2]
[395230177,1764556249418,-151.0,0.00016438,2]
[395230178,1764556249427,-151.0,0.00016438,2]
[395230179,1764556249436,-151.0,0.00016438,2]
[395230180,1764556249446,-151.0,0.00016438,2]
[395230181,1764556249455,-162.060403,0.00016438,2]
[395230182,1764556249464,-151.0,0.00016438,2]
[395230183,1764556249473,-151.0,0.00016438,2]
[395230184,1764556249483,-151.0,0.00016438,2]
[395230185,1764556249492,-151.0,0.00016438,2]
[395230186,1764556249501,-246.470718,0.00016438,2]
[395230187,1764556249511,-245.999525,0.00016438,2]
[395230188,1764556249520,-151.0,0.00016438,2]
[395230189,1764556249529,-151.0,0.00016438,2]
[395230190,1764556249538,-151.0,0.00016438,2]
[395230191,1764556249547,-151.0,0.00016438,2]
[395230192,1764556249557,-151.0,0.00016438,2]
[395230193,1764556249566,-151.945293,0.00016438,2]
[395230194,1764556249575,-2403.289053,0.00016438,2]
[395230195,1764556249585,-2403.289053,0.00016438,2]
[395230196,1764556249594,-151.0,0.00016438,2]
[395230197,1764556249603,-222.990006,0.00016438,2]
[395230198,1764556249615,-2403.289053,0.00016438,2]
[395230199,1764556249626,-222.990006,0.00016438,2]
[395230200,1764556249635,-2403.289053,0.00016438,2]
[395230201,1764556249646,-222.990006,0.00016438,2]
[395230202,1764556249655,-222.990006,0.00016438,2]
[395230203,1764556249664,-151.0,0.00016438,2]
[395230204,1764556249673,-151.0,0.00016438,2]
[395230205,1764556249682,-151.0,0.00016438,2]
[395230206,1764556249693,-151.0,0.00016438,2]
[395230207,1764556249703,-153.947973,0.00016438,2]
[395230208,1764556249713,-262.505051,0.00016438,2]
[395230209,1764556249722,-248.923275,0.00016438,2]
[395230210,1764556249731,-248.923275,0.00016438,2]
[395230211,1764556249740,-151.0,0.00016438,2]
[395230212,1764556249750,-248.923275,0.00016438,2]
[395230213,1764556249759,-151.0,0.00016438,2]
[395230214,1764556249768,-248.923275,0.00016438,2]
[395230215,1764556249777,-151.0,0.00016438,2]
[395230216,1764556249786,-151.0,0.00016438,2]
[395230217,1764556249796,-151.0,0.00016438,2]
[395230218,1764556249806,-180.616917,0.00016438,2]
[395230219,1764556249815,-180.616917,0.00016438,2]
[395230220,1764556249824,-180.616917,0.00016438,2]
[395230221,1764556249833,-180.616917,0.00016438,2]
[395230222,1764556249842,-337.87880249,0.00016438,2]
[395230223,1764556249853,-150.0,0.00016438,2]
[395230224,1764556249862,-150.0,0.00016438,2]
[395230225,1764556249871,-151.0,0.00016438,2]
[395230226,1764556249881,-151.0,0.00016438,2]
[395230227,1764556249890,-800.0,0.00016438,2]
[395230228,1764556249900,-600.0,0.00016438,2]
[395230229,1764556249909,-163.99,0.0001644,2]
[395230230,1764556249919,-150.0,0.0001644,2]
[395230231,1764556249929,-152.44390529,0.00016454,2]
[395230232,1764556249937,-214.27357495,0.00016454,2]
[395230233,1764556249946,-150.0,0.0001646,2]
[395230234,1764556249956,-150.0,0.00016461,2]
[395230235,1764556249965,-150.0,0.00016464,2]
[395230236,1764556249975,-150.0,0.00016466,2]
[395230237,1764556249985,-152.44390529,0.00016472,2]
[395230238,1764556249995,-214.27357495,0.00016472,2]
[395230239,1764556250005,-798.51664652,0.00016473,2]
[395230240,1764556250014,-1123.58810417,0.00016474,2]
[395230241,1764556250023,-604.07312412,0.00016483,2]
[395230242,1764556250033,-150.0,0.00016484,2]
[395230243,1764556250042,-151.0,0.00016484,2]
[395230244,1764556250051,-151.0,0.00016484,2]
[395230245,1764556250061,-265.093845,0.00016484,2]
[395230246,1764556250071,-361.657778,0.00016484,2]
[395230247,1764556250080,-151.0,0.00016484,2]
[395230248,1764556250089,-253.106699,0.00016484,2]
[395230249,1764556250099,-361.657778,0.00016484,2]
[395230250,1764556250108,-151.0,0.00016484,2]
[395230251,1764556250118,-361.657778,0.00016484,2]
[395230252,1764556250130,-225.335346,0.00016484,2]
[395230253,1764556250140,-361.657778,0.00016484,2]
[395230254,1764556250150,-151.0,0.00016484,2]
[395230255,1764556250159,-225.335346,0.00016484,2]
[395230256,1764556250171,-151.0,0.00016484,2]
[395230257,1764556250180,-225.335346,0.00016484,2]
[395230258,1764556250190,-158.534658,0.00016484,2]
[395230259,1764556250200,-151.0,0.00016484,2]
[395230260,1764556250211,-169.058897,0.00016484,2]
[395230261,1764556250221,-151.0,0.00016484,2]
[395230262,1764556250230,-151.0,0.00016484,2]
[395230263,1764556250239,-151.0,0.00016484,2]
[395230264,1764556250249,-225.335346,0.00016484,2]
[395230265,1764556250258,-151.0,0.00016484,2]
[395230266,1764556250267,-151.0,0.00016484,2]
[395230267,1764556250276,-151.0,0.00016484,2]
[395230268,1764556250286,-727.545878,0.00016484,2]
[395230269,1764556250295,-151.0,0.00016484,2]
[395230270,1764556250305,-727.545878,0.00016484,2]
[395230271,1764556250314,-727.545878,0.00016484,2]
[395230272,1764556250323,-727.545878,0.00016484,2]
[395230273,1764556250332,-421.34453,0.00016484,2]
[395230274,1764556250341,-421.34453,0.00016484,2]
[395230275,1764556250350,-421.34453,0.00016484,2]
[395230276,1764556250359,-421.34453,0.00016484,2]
[395230277,1764556250368,-157.83421,0.00016484,2]
[395230278,1764556250378,-151.0,0.00016484,2]
[395230279,1764556250387,-1916.265192,0.00016484,2]
[395230280,1764556250396,-1916.265192,0.00016484,2]
[395230281,1764556250408,-1916.265192,0.00016484,2]
[395230282,1764556250417,-1916.265192,0.00016484,2]
[395230283,1764556250427,-151.0,0.00016484,2]
[395230284,1764556250436,-168.0,0.00016485,2]
[395230285,1764556250445,-152.44390529,0.00016489,2]
[395230286,1764556250455,-214.27357495,0.00016489,2]
[395230287,1764556250464,-150.0,0.00016492,2]
[395230288,1764556250474,-150.0,0.00016493,2]
[395230289,1764556250483,-150.0,0.00016493,2]
[395230290,1764556250492,-150.0,0.00016496,2]
[395230291,1764556250502,-168.47,0.000165,2]
[395230292,1764556250511,-162.72,0.000165,2]
[395230293,1764556250520,-150.0,0.00016501,2]
[395230294,1764556250529,-150.0,0.00016501,2]
[395230295,1764556250539,-150.0,0.00016501,2]
[395230296,1764556250549,-152.44390529,0.00016506,2]
[395230297,1764556250559,-214.27357495,0.00016506,2]
[395230298,1764556250568,-150.0,0.00016508,2]
[395230299,1764556250578,-465.96204167,0.00016518,2]
[395230300,1764556250588,-150.0,0.00016521,2]
[395230301,1764556250598,-37038.67857742,0.00016522,2]
[395230302,1764556250607,-152.44390529,0.00016523,2]
[395230303,1764556250616,-214.27357495,0.00016523,2]
[395230304,1764556250625,-150.0,0.00016523,2]
[395230305,1764556250634,-1301.54,0.00016524,2]
[395230306,1764556250643,-150.0,0.00016529,2]
[395230307,1764556250652,-150.0,0.00016532,2]
[395230308,1764556250662,-221.53,0.00016537,2]
[395230309,1764556250671,-152.44390529,0.0001654,2]
[395230310,1764556250680,-214.27357495,0.0001654,2]
[395230311,1764556250689,-908.0,0.00016547,2]
[395230312,1764556250698,-150.0,0.00016548,2]
[395230313,1764556250707,-150.0,0.00016548,2]
[395230314,1764556250717,-150.0,0.00016554,2]
[395230315,1764556250726,-150.0,0.00016556,2]
[395230316,1764556250735,-152.44390529,0.00016557,2]
[395230317,1764556250744,-214.27357495,0.00016557,2]
[395230318,1764556250753,-150.0,0.00016562,2]
[395230319,1764556250762,-150.0,0.00016562,2]
[395230320,1764556250771,-150.0,0.00016562,2]
[395230321,1764556250780,-1000.0,0.00016564,2]
[395230322,1764556250789,-2500.0,0.00016564,2]
[395230323,1764556250798,-908.0,0.00016572,2]
[395230324,1764556250808,-152.44390529,0.00016575,2]
[395230325,1764556250818,-214.27357495,0.00016575,2]
[395230326,1764556250827,-150.0,0.00016575,2]
[395230327,1764556250837,-150.0,0.0001658,2]
[395230328,1764556250845,-150.0,0.00016582,2]
[395230329,1764556250855,-150.0,0.00016585,2]
[395230330,1764556250864,-152.44390529,0.00016592,2]
[395230331,1764556250873,-214.27357495,0.00016592,2]
[395230332,1764556250882,-150.0,0.00016594,2]
[395230333,1764556250893,-1000.0,0.000166,2]
[395230334,1764556250902,-1998.5068669,0.000166,2]
[395230335,1764556250912,-150.0,0.00016603,2]
[395230336,1764556250922,-150.0,0.00016603,2]
[395230337,1764556250931,-150.0,0.00016604,2]
[395230338,1764556250940,-152.44390529,0.00016609,2]
[395230339,1764556250949,-214.27357495,0.00016609,2]
[395230340,1764556250958,-150.0,0.00016609,2]
[395230341,1764556250967,-1123.58810417,0.00016616,2]
[395230342,1764556250976,-150.0,0.00016616,2]
[395230343,1764556250986,-150.0,0.00016622,2]
[395230344,1764556250996,-150.0,0.00016622,2]
[395230345,1764556251006,-152.44390529,0.00016626,2]
[395230346,1764556251015,-214.27357495,0.00016626,2]
[395230347,1764556251025,-150.0,0.00016627,2]
[395230348,1764556251034,-150.0,0.00016627,2]
[395230349,1764556251043,-150.0,0.0001663,2]
[395230350,1764556251053,-152.44390529,0.00016643,2]
[395230351,1764556251062,-214.27357495,0.00016643,2]
[395230352,1764556251072,-150.0,0.00016647,2]
[395230353,1764556251081,-150.0,0.00016651,2]
[395230354,1764556251091,-500.0,0.00016654,2]
[395230355,1764556251101,-500.0,0.00016654,2]
[395230356,1764556251111,-11342.96089445,0.00016655,2]
[395230357,1764556251121,-150.0,0.00016658,2]
[395230358,1764556251134,-150.0,0.00016658,2]
[395230359,1764556251144,-150.0,0.0001666,2]
[395230360,1764556251153,-152.44390529,0.0001666,2]
[395230361,1764556251163,-214.27357495,0.0001666,2]
[395230362,1764556251172,-150.0,0.00016663,2]
[395230363,1764556251183,-150.0,0.00016675,2]
[395230364,1764556251193,-152.44390529,0.00016677,2]
[395230365,1764556251205,-214.27357495,0.00016677,2]
[395230366,1764556251214,-150.0,0.00016677,2]
[395230367,1764556251223,-150.0,0.00016683,2]
[395230368,1764556251233,-150.0,0.00016685,2]
[395230369,1764556251242,-150.0,0.00016692,2]
[395230370,1764556251253,-3000.0,0.00016694,2]
[395230371,1764556251264,-553.64373807,0.00016694,2]
[395230372,1764556251273,-201.932861,0.00016694,2]
[395230373,1764556251283,-151.0,0.00016694,2]
[395230374,1764556251294,-201.93286099,0.00016694,2]
[395230375,1764556251304,-151.0,0.00016694,2]
[395230376,1764556251314,-151.0,0.00016694,2]
[395230377,1764556251323,-642.94,0.00016694,2]
[395230378,1764556251332,-152.44390529,0.00016695,2]
[395230379,1764556251342,-214.27357495,0.00016695,2]
[395230380,1764556251352,-150.0,0.00016699,2]
[395230381,1764556251363,-150.0,0.00016703,2]
[395230382,1764556251371,-150.0,0.00016708,2]
[395230383,1764556251381,-152.44390529,0.00016712,2]
[395230384,1764556251390,-214.27357495,0.00016712,2]
[395230385,1764556251400,-150.0,0.00016712,2]
[395230386,1764556251410,-150.0,0.00016712,2]
[395230387,1764556251420,-151.0,0.00016713,2]
[395230388,1764556251429,-150.0,0.00016723,2]
[395230389,1764556251438,-150.0,0.00016725,2]
[395230390,1764556251447,-152.44390529,0.00016729,2]
[395230391,1764556251456,-214.27357495,0.00016729,2]
[395230392,1764556251465,-150.0,0.00016739,2]
[395230393,1764556251475,-150.0,0.0001674,2]
[395230394,1764556251484,-150.0,0.00016744,2]
[395230395,1764556251494,-150.0,0.00016744,2]
[395230396,1764556251503,-150.0,0.00016744,2]
[395230397,1764556251512,-6911.10840627,0.00016745,2]
[395230398,1764556251521,-152.44390529,0.00016746,2]
[395230399,1764556251530,-214.27357495,0.00016746,2]
[395230400,1764556251539,-150.0,0.00016747,2]
[395230401,1764556251548,-150.0,0.00016758,2]
[395230402,1764556251558,-1123.58810417,0.00016758,2]
[395230403,1764556251567,-152.44390529,0.00016763,2]
[395230404,1764556251577,-214.27357495,0.00016763,2]
[395230405,1764556251586,-150.0,0.00016767,2]
[395230406,1764556251595,-150.0,0.00016767,2]
[395230407,1764556251605,-150.0,0.0001677,2]
[395230408,1764556251615,-150.0,0.00016771,2]
[395230409,1764556251623,-152.44390529,0.0001678,2]
[395230410,1764556251633,-214.27357495,0.0001678,2]
[395230411,1764556251642,-150.0,0.0001679,2]
[395230412,1764556251651,-908.0,0.00016793,2]
[395230413,1764556251661,-150.0,0.00016795,2]
[395230414,1764556251670,-150.0,0.00016795,2]
[395230415,1764556251679,-152.44390529,0.00016798,2]
[395230416,1764556251690,-214.27357495,0.00016798,2]
[395230417,1764556251699,-150.0,0.00016798,2]
[395230418,1764556251708,-150.0,0.00016801,2]
[395230419,1764556251718,-150.0,0.00016804,2]
[395230420,1764556251727,-152.44390529,0.00016815,2]
[395230421,1764556251738,-214.27357495,0.00016815,2]
[395230422,1764556251747,-150.0,0.00016819,2]
[395230423,1764556251756,-150.0,0.00016822,2]
[395230424,1764556251765,-150.0,0.00016822,2]
[395230425,1764556251775,-150.0,0.00016823,2]
[395230426,1764556251784,-150.0,0.00016825,2]
[395230427,1764556251793,-152.44390529,0.00016832,2]
[395230428,1764556251802,-214.27357495,0.00016832,2]
[395230429,1764556251812,-150.0,0.00016832,2]
[395230430,1764556251821,-150.0,0.00016836,2]
[395230431,1764556251830,-150.0,0.00016843,2]
[395230432,1764556251840,-152.44390529,0.00016849,2]
[395230433,1764556251849,-214.27357495,0.00016849,2]
[395230434,1764556251858,-150.0,0.00016849,2]
[395230435,1764556251867,-150.0,0.00016856,2]
[395230436,1764556251876,-150.0,0.00016863,2]
[395230437,1764556251885,-2000.0,0.00016864,2]
[395230438,1764556251894,-200.0,0.00016864,2]
[395230439,1764556251903,-150.0,0.00016865,2]
[395230440,1764556251912,-150.0,0.00016865,2]
[395230441,1764556251921,-152.44390529,0.00016866,2]
[395230442,1764556251930,-214.27357495,0.00016866,2]
[395230443,1764556251939,-150.0,0.00016867,2]
[395230444,1764556251948,-15123.82076573,0.00016873,2]
[395230445,1764556251957,-150.0,0.00016877,2]
[395230446,1764556251966,-150.0,0.00016877,2]
[395230447,1764556251975,-200.0,0.00016877,2]
[395230448,1764556251985,-500.0,0.00016877,2]
[395230449,1764556251994,-200.0,0.00016877,2]
[395230450,1764556252003,-274.0,0.00016879,2]
[395230451,1764556252012,-152.44390529,0.00016883,2]
[395230452,1764556252021,-214.27357495,0.00016883,2]
[395230453,1764556252032,-2000.0,0.00016884,2]
[395230454,1764556252040,-2000.0,0.00016884,2]
[395230455,1764556252049,-2000.0,0.00016884,2]
[395230456,1764556252058,-2000.0,0.00016884,2]
[395230457,1764556252068,-2000.0,0.00016884,2]
[395230458,1764556252077,-2000.0,0.00016884,2]
[395230459,1764556252086,-2000.0,0.00016884,2]
[395230460,1764556252095,-2000.0,0.00016884,2]
[395230461,1764556252104,-1453.256,0.00016884,2]
[395230462,1764556252113,-1000.0,0.00016884,2]
[395230463,1764556252125,-1000.0,0.00016884,2]
[395230464,1764556252139,-1000.0,0.00016884,2]
[395230465,1764556252148,-1000.0,0.00016884,2]
[395230466,1764556252158,-1000.0,0.00016884,2]
[395230467,1764556252169,-1000.0,0.00016884,2]
[395230468,1764556252178,-1000.0,0.00016884,2]
[395230469,1764556252188,-1000.0,0.00016884,2]
[395230470,1764556252201,-1000.0,0.00016884,2]
[395230471,1764556252219,-1000.0,0.00016884,2]
[395230472,1764556252229,-1000.0,0.00016884,2]
[395230473,1764556252245,-1000.0,0.00016884,2]
[395230474,1764556252253,-1000.0,0.00016884,2]
[395230475,1764556252262,-1000.0,0.00016884,2]
[395230476,1764556252271,-1000.0,0.00016884,2]
[395230477,1764556252280,-1000.0,0.00016884,2]
[395230478,1764556252289,-150.0,0.00016888,2]
[395230479,1764556252298,-222.76990664,0.0001689,2]
[395230480,1764556252309,-150.0,0.00016891,2]
[395230481,1764556252319,-1000.0,0.00016892,2]
[395230482,1764556252329,-150.0,0.00016894,2]
[395230483,1764556252338,-500.0,0.00016898,2]
[395230484,1764556252347,-500.0,0.00016898,2]
[395230485,1764556252356,-500.0,0.00016898,2]
[395230486,1764556252366,-500.0,0.00016898,2]
[395230487,1764556252375,-500.0,0.00016898,2]
[395230488,1764556252385,-545.80682701,0.00016898,2]
[395230489,1764556252395,-500.0,0.00016898,2]
[395230490,1764556252404,-500.0,0.00016898,2]
[395230491,1764556252413,-500.0,0.00016898,2]
[395230492,1764556252422,-500.0,0.00016898,2]
[395230493,1764556252431,-500.0,0.00016898,2]
[395230494,1764556252440,-500.0,0.00016898,2]
[395230495,1764556252449,-500.0,0.00016898,2]
[395230496,1764556252458,-269.91867043,0.00016898,2]
[395230497,1764556252467,-736.0,0.00016899,2]
[395230498,1764556252477,-9372.0,0.000169,2]
[395230499,1764556252486,-301.25896115,0.000169,3]
[395230500,1764556252494,-1123.58810417,0.000169,2]
[395230501,1764556252503,-428.54,0.000169,2]
[395230502,1764556252513,-162.0,0.000169,3]
[395230503,1764556252522,-162.0,0.000169,3]
[395230504,1764556252531,-37038.67857742,0.000169,2]
[395230505,1764556252540,-798.51664652,0.000169,2]
[395230506,1764556252550,-151.0,0.000169,2]
[395230507,1764556252559,-151.0,0.000169,2]
[395230508,1764556252568,-151.0,0.000169,2]
[395230509,1764556252577,-151.0,0.000169,2]
[395230510,1764556252586,-151.0,0.000169,2]
[395230511,1764556252595,-151.0,0.000169,2]
[395230512,1764556252604,-151.0,0.000169,2]
[395230513,1764556252614,-151.0,0.000169,2]
[395230514,1764556252623,-151.0,0.000169,2]
[395230515,1764556252632,-151.0,0.000169,2]
[395230516,1764556252641,-151.0,0.000169,2]
[395230517,1764556252650,-151.0,0.000169,2]
[395230518,1764556252659,-151.0,0.000169,2]
[395230519,1764556252668,-387.628526,0.000169,2]
[395230520,1764556252678,-151.0,0.000169,2]
[395230521,1764556252687,-387.628526,0.000169,2]
[395230522,1764556252696,-387.628526,0.000169,2]
[395230523,1764556252706,-151.882126,0.000169,2]
[395230524,1764556252715,-387.628526,0.000169,2]